[Event "Titled Tuesday Blitz August 15 Late 2023"]
[White "MrAnnihilation"]
[Black "Zampronha, Wladimir Camilo"]
[BlackFideId "2103087"]
[WhiteElo "2435"]
[BlackElo "2253"]
[Result "0-1"]
[Round "7"]
[TimeControl "180+1"]
[Date "2023.08.15"]
[WhiteClock "0:00:00"]
[BlackClock "0:00:25"]
[Board "102"]

1. e4 {[%clk 0:03:00]}  c5 {[%clk 0:02:59]} 2. Nf3 {[%clk 0:03:00]}  e6 {[%clk 0:03:00]} 3. d3 {[%clk 0:03:00]}  Nc6 {[%clk 0:02:59]} 4. g3 {[%clk 0:03:00]}  d5 {[%clk 0:02:59]} 5. Qe2 {[%clk 0:02:59]}  Nge7 {[%clk 0:02:51]} 6. Bg2 {[%clk 0:02:59]}  g6 {[%clk 0:02:52]} 7. O-O {[%clk 0:02:59]}  Bg7 {[%clk 0:02:52]} 8. c3 {[%clk 0:03:00]}  O-O {[%clk 0:02:48]} 9. e5 {[%clk 0:03:00]}  b5 {[%clk 0:02:47]} 10. Re1 {[%clk 0:02:59]}  a5 {[%clk 0:02:45]} 11. h4 {[%clk 0:02:47]}  b4 {[%clk 0:02:42]} 12. Nbd2 {[%clk 0:02:46]}  Ba6 {[%clk 0:02:42]} 13. Nf1 {[%clk 0:02:40]}  a4 {[%clk 0:02:37]} 14. a3 {[%clk 0:02:38]}  bxc3 {[%clk 0:02:35]} 15. bxc3 {[%clk 0:02:39]}  Rb8 {[%clk 0:02:34]} 16. Bf4 {[%clk 0:02:28]}  Rb3 {[%clk 0:02:34]} 17. Rec1 {[%clk 0:02:16]}  Qa5 {[%clk 0:02:33]} 18. Bd2 {[%clk 0:02:15]}  Rfb8 {[%clk 0:02:26]} 19. N1h2 {[%clk 0:02:11]}  Rb2 {[%clk 0:02:24]} 20. Ng4 {[%clk 0:02:10]}  Nf5 {[%clk 0:02:21]} 21. h5 {[%clk 0:02:08]}  Qb5 {[%clk 0:01:46]} 22. Bf1 {[%clk 0:02:08]}  Qb3 {[%clk 0:01:42]} 23. Qe1 {[%clk 0:01:38]}  Rc2 {[%clk 0:01:34]} 24. h6 {[%clk 0:01:35]}  Rxc1 {[%clk 0:01:24]} 25. Bxc1 {[%clk 0:01:28]}  Bf8 {[%clk 0:01:13]} 26. Nf6+ {[%clk 0:01:19]}  Kh8 {[%clk 0:01:13]} 27. Ng5 {[%clk 0:01:20]}  Rb7 {[%clk 0:01:08]} 28. Ngxh7 {[%clk 0:01:10]}  Nxh6 {[%clk 0:01:04]} 29. Nxf8 {[%clk 0:01:10]}  Nf5 {[%clk 0:00:59]} 30. Qd2 {[%clk 0:00:56]}  Kg7 {[%clk 0:00:57]} 31. N8d7 {[%clk 0:00:41]}  Nxe5 {[%clk 0:00:55]} 32. Nxc5 {[%clk 0:00:37]}  Nf3+ {[%clk 0:00:53]} 33. Kg2 {[%clk 0:00:33]}  Nxd2 {[%clk 0:00:54]} 34. Bxd2 {[%clk 0:00:22]}  Qc2 {[%clk 0:00:44]} 35. Bg5 {[%clk 0:00:18]}  Qxc3 {[%clk 0:00:38]} 36. Nxa6 {[%clk 0:00:14]}  Qxa1 {[%clk 0:00:37]} 37. Nc5 {[%clk 0:00:15]}  Rb1 {[%clk 0:00:33]} 38. Be2 {[%clk 0:00:13]}  Rg1+ {[%clk 0:00:32]} 39. Kf3 {[%clk 0:00:13]}  Qd4 {[%clk 0:00:28]} 40. Ng4 {[%clk 0:00:00]}  Qxc5 {[%clk 0:00:25]} 0-1


[Site "https://www.chess.com"]

[Event "Titled Tuesday Blitz August 15 Late 2023"]
[White "Fiorito, Joaquin"]
[Black "Labussiere, Yago"]
[WhiteFideId "180173"]
[BlackFideId "2186969"]
[WhiteElo "2649"]
[BlackElo "2368"]
[Result "1-0"]
[Round "7"]
[TimeControl "180+1"]
[Date "2023.08.15"]
[WhiteClock "0:02:23"]
[BlackClock "0:01:41"]
[Board "103"]

1. d4 {[%clk 0:03:00]}  Nf6 {[%clk 0:02:59]} 2. c4 {[%clk 0:03:01]}  g6 {[%clk 0:02:59]} 3. Nc3 {[%clk 0:03:01]}  d6 {[%clk 0:03:00]} 4. e4 {[%clk 0:03:01]}  Bg7 {[%clk 0:03:01]} 5. h3 {[%clk 0:03:01]}  O-O {[%clk 0:03:01]} 6. Be3 {[%clk 0:03:02]}  e5 {[%clk 0:02:59]} 7. d5 {[%clk 0:03:02]}  a5 {[%clk 0:02:58]} 8. g4 {[%clk 0:03:02]}  Na6 {[%clk 0:02:57]} 9. Qd2 {[%clk 0:03:03]}  Nc5 {[%clk 0:02:56]} 10. f3 {[%clk 0:03:03]}  c6 {[%clk 0:02:53]} 11. Nge2 {[%clk 0:03:03]}  cxd5 {[%clk 0:02:51]} 12. cxd5 {[%clk 0:03:04]}  a4 {[%clk 0:02:51]} 13. Nc1 {[%clk 0:03:03]}  Qa5 {[%clk 0:02:49]} 14. h4 {[%clk 0:03:02]}  Bd7 {[%clk 0:02:48]} 15. h5 {[%clk 0:03:00]}  b5 {[%clk 0:02:48]} 16. Nd3 {[%clk 0:02:56]}  b4 {[%clk 0:02:27]} 17. Ne2 {[%clk 0:02:54]}  Nxd3+ {[%clk 0:02:24]} 18. Qxd3 {[%clk 0:02:55]}  Bb5 {[%clk 0:02:25]} 19. Qd2 {[%clk 0:02:54]}  Rac8 {[%clk 0:02:16]} 20. hxg6 {[%clk 0:02:48]}  fxg6 {[%clk 0:02:16]} 21. Ng3 {[%clk 0:02:45]}  Rf7 {[%clk 0:02:10]} 22. Bxb5 {[%clk 0:02:42]}  Qxb5 {[%clk 0:02:10]} 23. Rc1 {[%clk 0:02:34]}  Rfc7 {[%clk 0:02:09]} 24. Rxc7 {[%clk 0:02:33]}  Rxc7 {[%clk 0:02:10]} 25. Kf2 {[%clk 0:02:30]}  Nd7 {[%clk 0:02:02]} 26. Rc1 {[%clk 0:02:27]}  Rc4 {[%clk 0:02:02]} 27. Qe2 {[%clk 0:02:25]}  Nb6 {[%clk 0:01:53]} 28. b3 {[%clk 0:02:24]}  axb3 {[%clk 0:01:44]} 29. axb3 {[%clk 0:02:25]}  Rc5 {[%clk 0:01:42]} 30. Bxc5 {[%clk 0:02:21]}  Qxe2+ {[%clk 0:01:41]} 31. Kxe2 {[%clk 0:02:22]}  dxc5 {[%clk 0:01:41]} 32. Rxc5 {[%clk 0:02:23]} 1-0


[Site "https://www.chess.com"]

[Event "Titled Tuesday Blitz August 15 Late 2023"]
[White "Golubev, Mikhail"]
[Black "Stachanczyk, Jacek"]
[WhiteFideId "14100983"]
[BlackFideId "1116657"]
[WhiteElo "2542"]
[BlackElo "2333"]
[Result "1-0"]
[Round "7"]
[TimeControl "180+1"]
[Date "2023.08.15"]
[WhiteClock "0:02:02"]
[BlackClock "0:01:37"]
[Board "107"]

1. e4 {[%clk 0:03:00]}  c6 {[%clk 0:02:57]} 2. d4 {[%clk 0:02:58]}  d5 {[%clk 0:02:56]} 3. Nc3 {[%clk 0:02:58]}  dxe4 {[%clk 0:02:55]} 4. Nxe4 {[%clk 0:02:59]}  Bf5 {[%clk 0:02:54]} 5. Ng3 {[%clk 0:02:59]}  Bg6 {[%clk 0:02:54]} 6. c3 {[%clk 0:02:59]}  Nd7 {[%clk 0:02:47]} 7. Nh3 {[%clk 0:02:58]}  e5 {[%clk 0:02:45]} 8. Qe2 {[%clk 0:02:42]}  Qe7 {[%clk 0:02:31]} 9. f4 {[%clk 0:02:36]}  exd4 {[%clk 0:02:27]} 10. f5 {[%clk 0:02:34]}  dxc3 {[%clk 0:02:13]} 11. fxg6 {[%clk 0:02:21]}  hxg6 {[%clk 0:02:13]} 12. Qxe7+ {[%clk 0:02:17]}  Nxe7 {[%clk 0:02:08]} 13. bxc3 {[%clk 0:02:17]}  Nd5 {[%clk 0:02:06]} 14. Bd2 {[%clk 0:02:12]}  O-O-O {[%clk 0:01:59]} 15. O-O-O {[%clk 0:02:10]}  Rh4 {[%clk 0:01:37]} 16. Bg5 {[%clk 0:02:02]} 1-0


[Site "https://www.chess.com"]

[Event "Titled Tuesday Blitz August 15 Late 2023"]
[White "Musovic, Armin"]
[Black "Gerbelli Neto, Eduardo"]
[WhiteFideId "939935"]
[BlackFideId "2103281"]
[WhiteElo "2529"]
[BlackElo "2333"]
[Result "1-0"]
[Round "7"]
[TimeControl "180+1"]
[Date "2023.08.15"]
[WhiteClock "0:00:08"]
[BlackClock "0:00:03"]
[Board "108"]

1. a3 {[%clk 0:02:16]}  c5 {[%clk 0:02:56]} 2. Nc3 {[%clk 0:02:16]}  d5 {[%clk 0:02:56]} 3. e4 {[%clk 0:02:15]}  d4 {[%clk 0:02:54]} 4. Nce2 {[%clk 0:02:16]}  e5 {[%clk 0:02:53]} 5. Ng3 {[%clk 0:02:16]}  Nc6 {[%clk 0:02:53]} 6. Bb5 {[%clk 0:02:16]}  Ne7 {[%clk 0:02:52]} 7. Bxc6+ {[%clk 0:02:17]}  Nxc6 {[%clk 0:02:52]} 8. d3 {[%clk 0:02:17]}  Be7 {[%clk 0:02:49]} 9. N1e2 {[%clk 0:02:17]}  Be6 {[%clk 0:02:47]} 10. O-O {[%clk 0:02:16]}  O-O {[%clk 0:02:47]} 11. f4 {[%clk 0:02:15]}  exf4 {[%clk 0:02:38]} 12. Bxf4 {[%clk 0:02:16]}  Bd6 {[%clk 0:02:12]} 13. Qd2 {[%clk 0:02:12]}  Ne5 {[%clk 0:02:07]} 14. h3 {[%clk 0:02:10]}  f6 {[%clk 0:02:03]} 15. Rf2 {[%clk 0:02:06]}  Qc7 {[%clk 0:02:00]} 16. Raf1 {[%clk 0:02:06]}  Rac8 {[%clk 0:01:51]} 17. Kh1 {[%clk 0:01:54]}  Rfd8 {[%clk 0:01:50]} 18. Bxe5 {[%clk 0:01:21]}  Bxe5 {[%clk 0:01:50]} 19. Nf5 {[%clk 0:01:20]}  c4 {[%clk 0:01:40]} 20. Qb4 {[%clk 0:00:48]}  Bxf5 {[%clk 0:01:36]} 21. Rxf5 {[%clk 0:00:46]}  a5 {[%clk 0:01:29]} 22. Qb5 {[%clk 0:00:40]}  cxd3 {[%clk 0:01:20]} 23. cxd3 {[%clk 0:00:41]}  b6 {[%clk 0:01:03]} 24. Nf4 {[%clk 0:00:30]}  Qd6 {[%clk 0:00:34]} 25. Nd5 {[%clk 0:00:25]}  Kh8 {[%clk 0:00:25]} 26. Qxb6 {[%clk 0:00:22]}  Rb8 {[%clk 0:00:20]} 27. Qxd6 {[%clk 0:00:21]}  Rxd6 {[%clk 0:00:21]} 28. b4 {[%clk 0:00:18]}  axb4 {[%clk 0:00:21]} 29. axb4 {[%clk 0:00:19]}  Rc6 {[%clk 0:00:21]} 30. b5 {[%clk 0:00:14]}  Rc2 {[%clk 0:00:22]} 31. b6 {[%clk 0:00:14]}  Rd2 {[%clk 0:00:21]} 32. R1f3 {[%clk 0:00:10]}  g6 {[%clk 0:00:22]} 33. Rxf6 {[%clk 0:00:08]}  Bxf6 {[%clk 0:00:21]} 34. Rxf6 {[%clk 0:00:08]}  Rxd3 {[%clk 0:00:22]} 35. Rd6 {[%clk 0:00:07]}  Rd1+ {[%clk 0:00:21]} 36. Kh2 {[%clk 0:00:08]}  d3 {[%clk 0:00:21]} 37. Rd7 {[%clk 0:00:08]}  d2 {[%clk 0:00:21]} 38. Nf6 {[%clk 0:00:09]}  Rh1+ {[%clk 0:00:12]} 39. Kg3 {[%clk 0:00:09]}  Rb7 {[%clk 0:00:05]} 40. Rxb7 {[%clk 0:00:08]}  d1=Q {[%clk 0:00:03]} 41. Rxh7# {[%clk 0:00:08]} 1-0


[Site "https://www.chess.com"]

[Event "Titled Tuesday Blitz August 15 Late 2023"]
[White "Kujawski, Adam"]
[Black "Karamsetty, Jeevan"]
[WhiteFideId "1100920"]
[BlackFideId "2025337"]
[WhiteElo "2323"]
[BlackElo "2513"]
[Result "1/2-1/2"]
[Round "7"]
[TimeControl "180+1"]
[Date "2023.08.15"]
[WhiteClock "0:00:05"]
[BlackClock "0:00:21"]
[Board "110"]

1. e4 {[%clk 0:02:50]}  g6 {[%clk 0:02:55]} 2. d4 {[%clk 0:02:49]}  d6 {[%clk 0:02:54]} 3. Nc3 {[%clk 0:02:47]}  Bg7 {[%clk 0:02:54]} 4. h3 {[%clk 0:02:47]}  a6 {[%clk 0:02:53]} 5. a4 {[%clk 0:02:46]}  e6 {[%clk 0:02:50]} 6. Nf3 {[%clk 0:02:46]}  Ne7 {[%clk 0:02:49]} 7. Be2 {[%clk 0:02:46]}  O-O {[%clk 0:02:49]} 8. O-O {[%clk 0:02:46]}  Nbc6 {[%clk 0:02:45]} 9. Kh1 {[%clk 0:02:46]}  b6 {[%clk 0:02:41]} 10. Bg5 {[%clk 0:02:26]}  Bb7 {[%clk 0:02:38]} 11. Qd2 {[%clk 0:02:26]}  e5 {[%clk 0:02:30]} 12. dxe5 {[%clk 0:02:15]}  Nxe5 {[%clk 0:02:28]} 13. Nxe5 {[%clk 0:02:14]}  Bxe5 {[%clk 0:02:28]} 14. f4 {[%clk 0:01:45]}  Bg7 {[%clk 0:02:21]} 15. f5 {[%clk 0:01:44]}  f6 {[%clk 0:02:19]} 16. Bh6 {[%clk 0:01:41]}  d5 {[%clk 0:02:02]} 17. Bxg7 {[%clk 0:01:36]}  Kxg7 {[%clk 0:02:01]} 18. Rad1 {[%clk 0:01:18]}  dxe4 {[%clk 0:01:51]} 19. Qf4 {[%clk 0:01:15]}  Qc8 {[%clk 0:01:45]} 20. fxg6 {[%clk 0:00:55]}  hxg6 {[%clk 0:01:46]} 21. Bg4 {[%clk 0:00:46]}  f5 {[%clk 0:01:37]} 22. Qe5+ {[%clk 0:00:46]}  Kf7 {[%clk 0:01:36]} 23. Nxe4 {[%clk 0:00:37]}  Bxe4 {[%clk 0:01:35]} 24. Qxe4 {[%clk 0:00:36]}  Qe6 {[%clk 0:01:31]} 25. Qxe6+ {[%clk 0:00:18]}  Kxe6 {[%clk 0:01:32]} 26. Rfe1+ {[%clk 0:00:18]}  Kf6 {[%clk 0:01:32]} 27. Bf3 {[%clk 0:00:18]}  Rad8 {[%clk 0:01:32]} 28. g3 {[%clk 0:00:17]}  g5 {[%clk 0:01:30]} 29. Kg2 {[%clk 0:00:17]}  Ng6 {[%clk 0:01:30]} 30. Kf2 {[%clk 0:00:16]}  Ne5 {[%clk 0:01:28]} 31. Rxd8 {[%clk 0:00:12]}  Rxd8 {[%clk 0:01:28]} 32. Rd1 {[%clk 0:00:12]}  Re8 {[%clk 0:01:26]} 33. Be2 {[%clk 0:00:12]}  a5 {[%clk 0:01:22]} 34. Rd4 {[%clk 0:00:12]}  Re7 {[%clk 0:01:20]} 35. h4 {[%clk 0:00:12]}  g4 {[%clk 0:01:18]} 36. c3 {[%clk 0:00:11]}  Ng6 {[%clk 0:01:12]} 37. b4 {[%clk 0:00:09]}  axb4 {[%clk 0:01:11]} 38. cxb4 {[%clk 0:00:10]}  Ne5 {[%clk 0:01:10]} 39. a5 {[%clk 0:00:08]}  c5 {[%clk 0:00:58]} 40. bxc5 {[%clk 0:00:07]}  bxc5 {[%clk 0:00:59]} 41. Rd5 {[%clk 0:00:07]}  c4 {[%clk 0:00:55]} 42. a6 {[%clk 0:00:07]}  Ra7 {[%clk 0:00:53]} 43. Ra5 {[%clk 0:00:07]}  Ke6 {[%clk 0:00:49]} 44. Ke3 {[%clk 0:00:07]}  Kd6 {[%clk 0:00:21]} 45. Kd2 {[%clk 0:00:05]} 1/2-1/2


[Site "https://www.chess.com"]

[Event "Titled Tuesday Blitz August 15 Late 2023"]
[White "Berezin, Viktor"]
[Black "Okike, David"]
[WhiteFideId "14107872"]
[BlackFideId "8500134"]
[WhiteElo "2493"]
[BlackElo "2323"]
[Result "1-0"]
[Round "7"]
[TimeControl "180+1"]
[Date "2023.08.15"]
[WhiteClock "0:00:05"]
[BlackClock "0:00:08"]
[Board "111"]

1. g3 {[%clk 0:02:52]}  g6 {[%clk 0:02:57]} 2. Bg2 {[%clk 0:02:52]}  Bg7 {[%clk 0:02:57]} 3. e4 {[%clk 0:02:52]}  d6 {[%clk 0:02:57]} 4. Nc3 {[%clk 0:02:50]}  Nf6 {[%clk 0:02:57]} 5. d3 {[%clk 0:02:46]}  O-O {[%clk 0:02:57]} 6. Nf3 {[%clk 0:02:45]}  c5 {[%clk 0:02:57]} 7. O-O {[%clk 0:02:44]}  Nc6 {[%clk 0:02:57]} 8. a4 {[%clk 0:02:44]}  Rb8 {[%clk 0:02:57]} 9. h3 {[%clk 0:02:43]}  Ne8 {[%clk 0:02:53]} 10. Nd2 {[%clk 0:02:42]}  Nc7 {[%clk 0:02:53]} 11. Nc4 {[%clk 0:02:40]}  Ne6 {[%clk 0:02:52]} 12. Kh2 {[%clk 0:02:36]}  Ned4 {[%clk 0:02:51]} 13. f4 {[%clk 0:02:35]}  Be6 {[%clk 0:02:50]} 14. Ne3 {[%clk 0:02:32]}  a6 {[%clk 0:02:49]} 15. f5 {[%clk 0:02:29]}  Bd7 {[%clk 0:02:45]} 16. Ncd5 {[%clk 0:02:28]}  Ne5 {[%clk 0:02:38]} 17. c3 {[%clk 0:02:21]}  Ndc6 {[%clk 0:02:38]} 18. d4 {[%clk 0:02:09]}  e6 {[%clk 0:02:33]} 19. dxe5 {[%clk 0:01:50]}  exd5 {[%clk 0:02:32]} 20. Nxd5 {[%clk 0:01:51]}  dxe5 {[%clk 0:02:25]} 21. f6 {[%clk 0:01:50]}  Bh8 {[%clk 0:02:25]} 22. Bh6 {[%clk 0:01:40]}  Re8 {[%clk 0:02:24]} 23. Qf3 {[%clk 0:01:41]}  Be6 {[%clk 0:02:22]} 24. Rad1 {[%clk 0:01:41]}  Qa5 {[%clk 0:02:20]} 25. Bg7 {[%clk 0:01:32]}  Bxg7 {[%clk 0:01:56]} 26. fxg7 {[%clk 0:01:33]}  Kxg7 {[%clk 0:01:57]} 27. h4 {[%clk 0:01:20]}  f5 {[%clk 0:01:53]} 28. h5 {[%clk 0:01:14]}  Rf8 {[%clk 0:01:52]} 29. Qe3 {[%clk 0:01:11]}  Rbe8 {[%clk 0:01:48]} 30. exf5 {[%clk 0:00:58]}  gxf5 {[%clk 0:01:45]} 31. Qg5+ {[%clk 0:00:54]}  Kh8 {[%clk 0:01:45]} 32. h6 {[%clk 0:00:54]}  Rf7 {[%clk 0:01:45]} 33. Nf6 {[%clk 0:00:37]}  Ref8 {[%clk 0:01:39]} 34. Rd6 {[%clk 0:00:36]}  Bc4 {[%clk 0:01:31]} 35. Rxf5 {[%clk 0:00:35]}  Qc7 {[%clk 0:01:29]} 36. Rd7 {[%clk 0:00:20]}  Qd8 {[%clk 0:01:18]} 37. Rxd8 {[%clk 0:00:17]}  Nxd8 {[%clk 0:01:16]} 38. Rxe5 {[%clk 0:00:09]}  Ne6 {[%clk 0:01:11]} 39. Rxe6 {[%clk 0:00:09]}  Bxe6 {[%clk 0:01:10]} 40. Be4 {[%clk 0:00:08]}  b6 {[%clk 0:01:06]} 41. g4 {[%clk 0:00:04]}  a5 {[%clk 0:01:00]} 42. Kg3 {[%clk 0:00:04]}  Bb3 {[%clk 0:00:59]} 43. Nxh7 {[%clk 0:00:03]}  Rg8 {[%clk 0:00:58]} 44. Qh5 {[%clk 0:00:02]}  Rxh7 {[%clk 0:00:55]} 45. Qe5+ {[%clk 0:00:02]}  Rhg7 {[%clk 0:00:55]} 46. hxg7+ {[%clk 0:00:02]}  Rxg7 {[%clk 0:00:56]} 47. Qb8+ {[%clk 0:00:02]}  Bg8 {[%clk 0:00:55]} 48. Qxb6 {[%clk 0:00:03]}  Bh7 {[%clk 0:00:52]} 49. Bxh7 {[%clk 0:00:02]}  Kxh7 {[%clk 0:00:51]} 50. Qxc5 {[%clk 0:00:03]}  Rb7 {[%clk 0:00:48]} 51. Qh5+ {[%clk 0:00:03]}  Kg7 {[%clk 0:00:47]} 52. Qxa5 {[%clk 0:00:04]}  Rxb2 {[%clk 0:00:47]} 53. Qe5+ {[%clk 0:00:04]}  Kg6 {[%clk 0:00:47]} 54. Qe3 {[%clk 0:00:05]}  Rb3 {[%clk 0:00:43]} 55. Kf4 {[%clk 0:00:06]}  Kf6 {[%clk 0:00:38]} 56. Qd4+ {[%clk 0:00:06]}  Kg6 {[%clk 0:00:37]} 57. g5 {[%clk 0:00:06]}  Rb2 {[%clk 0:00:35]} 58. Qf6+ {[%clk 0:00:07]}  Kh7 {[%clk 0:00:35]} 59. Qf5+ {[%clk 0:00:07]}  Kg7 {[%clk 0:00:35]} 60. Qg4 {[%clk 0:00:08]}  Rf2+ {[%clk 0:00:34]} 61. Ke5 {[%clk 0:00:08]}  Rf7 {[%clk 0:00:35]} 62. g6 {[%clk 0:00:07]}  Rf6 {[%clk 0:00:31]} 63. Qd7+ {[%clk 0:00:07]}  Kxg6 {[%clk 0:00:31]} 64. Qg4+ {[%clk 0:00:06]}  Kf7 {[%clk 0:00:31]} 65. Qc4+ {[%clk 0:00:07]}  Kg6 {[%clk 0:00:31]} 66. a5 {[%clk 0:00:07]}  Rf5+ {[%clk 0:00:31]} 67. Ke4 {[%clk 0:00:05]}  Rxa5 {[%clk 0:00:31]} 68. Qe6+ {[%clk 0:00:05]}  Kh5 {[%clk 0:00:30]} 69. Qf7+ {[%clk 0:00:05]}  Kg4 {[%clk 0:00:28]} 70. Qg6+ {[%clk 0:00:05]}  Kh3 {[%clk 0:00:24]} 71. c4 {[%clk 0:00:05]}  Ra2 {[%clk 0:00:21]} 72. Qf5+ {[%clk 0:00:04]}  Kg3 {[%clk 0:00:20]} 73. c5 {[%clk 0:00:05]}  Re2+ {[%clk 0:00:19]} 74. Kd5 {[%clk 0:00:05]}  Rd2+ {[%clk 0:00:19]} 75. Kc6 {[%clk 0:00:05]}  Re2 {[%clk 0:00:16]} 76. Kb6 {[%clk 0:00:05]}  Rb2+ {[%clk 0:00:15]} 77. Kc7 {[%clk 0:00:05]}  Re2 {[%clk 0:00:14]} 78. c6 {[%clk 0:00:06]}  Re7+ {[%clk 0:00:14]} 79. Kd8 {[%clk 0:00:05]}  Rf7 {[%clk 0:00:08]} 80. Qxf7 {[%clk 0:00:05]} 1-0


[Site "https://www.chess.com"]

[Event "Titled Tuesday Blitz August 15 Late 2023"]
[White "Garmendiarov"]
[Black "Kirillov, Dmitry"]
[BlackFideId "34180572"]
[WhiteElo "2304"]
[BlackElo "2466"]
[Result "0-1"]
[Round "7"]
[TimeControl "180+1"]
[Date "2023.08.15"]
[WhiteClock "0:00:03"]
[BlackClock "0:00:13"]
[Board "112"]

1. e4 {[%clk 0:03:00]}  e6 {[%clk 0:03:00]} 2. d4 {[%clk 0:03:01]}  b6 {[%clk 0:02:59]} 3. Nc3 {[%clk 0:03:00]}  Bb7 {[%clk 0:02:59]} 4. Nf3 {[%clk 0:03:00]}  Bb4 {[%clk 0:02:59]} 5. Bd3 {[%clk 0:03:00]}  c5 {[%clk 0:02:58]} 6. dxc5 {[%clk 0:02:59]}  Bxc5 {[%clk 0:02:56]} 7. O-O {[%clk 0:02:59]}  Be7 {[%clk 0:02:53]} 8. e5 {[%clk 0:02:54]}  d5 {[%clk 0:02:52]} 9. exd6 {[%clk 0:02:53]}  Bxd6 {[%clk 0:02:51]} 10. Nb5 {[%clk 0:02:45]}  Nc6 {[%clk 0:02:41]} 11. Nxd6+ {[%clk 0:02:44]}  Qxd6 {[%clk 0:02:41]} 12. Qe2 {[%clk 0:02:36]}  Nf6 {[%clk 0:02:41]} 13. Bg5 {[%clk 0:02:33]}  O-O-O {[%clk 0:02:41]} 14. Rad1 {[%clk 0:02:32]}  Nd4 {[%clk 0:02:39]} 15. Nxd4 {[%clk 0:02:30]}  Qxd4 {[%clk 0:02:40]} 16. Ba6 {[%clk 0:02:16]}  Qc5 {[%clk 0:02:18]} 17. Be3 {[%clk 0:01:58]}  Qc6 {[%clk 0:02:08]} 18. Bxb7+ {[%clk 0:01:55]}  Kxb7 {[%clk 0:02:09]} 19. c4 {[%clk 0:01:51]}  Ne4 {[%clk 0:02:05]} 20. b4 {[%clk 0:01:43]}  e5 {[%clk 0:02:01]} 21. Qf3 {[%clk 0:01:34]}  Nf6 {[%clk 0:01:54]} 22. Qf5 {[%clk 0:01:21]}  Qe4 {[%clk 0:01:44]} 23. Qh3 {[%clk 0:01:06]}  Qg4 {[%clk 0:01:41]} 24. Qxg4 {[%clk 0:00:49]}  Nxg4 {[%clk 0:01:41]} 25. Bc1 {[%clk 0:00:49]}  h6 {[%clk 0:01:39]} 26. Bb2 {[%clk 0:00:47]}  e4 {[%clk 0:00:56]} 27. Bxg7 {[%clk 0:00:32]}  Rxd1 {[%clk 0:00:47]} 28. Rxd1 {[%clk 0:00:27]}  Rg8 {[%clk 0:00:46]} 29. Bc3 {[%clk 0:00:21]}  e3 {[%clk 0:00:42]} 30. fxe3 {[%clk 0:00:18]}  Nxe3 {[%clk 0:00:42]} 31. Rd2 {[%clk 0:00:15]}  Nxc4 {[%clk 0:00:41]} 32. Rd7+ {[%clk 0:00:15]}  Kc6 {[%clk 0:00:41]} 33. Rxf7 {[%clk 0:00:15]}  Rd8 {[%clk 0:00:37]} 34. Rf6+ {[%clk 0:00:15]}  Kb5 {[%clk 0:00:36]} 35. Rxh6 {[%clk 0:00:14]}  Rd3 {[%clk 0:00:34]} 36. Be1 {[%clk 0:00:12]}  Ne3 {[%clk 0:00:32]} 37. Kf2 {[%clk 0:00:09]}  Ng4+ {[%clk 0:00:32]} 38. Ke2 {[%clk 0:00:10]}  Re3+ {[%clk 0:00:30]} 39. Kd2 {[%clk 0:00:10]}  Rxe1 {[%clk 0:00:29]} 40. Rh5+ {[%clk 0:00:10]}  Re5 {[%clk 0:00:29]} 41. Rxe5+ {[%clk 0:00:09]}  Nxe5 {[%clk 0:00:30]} 42. h4 {[%clk 0:00:09]}  Kxb4 {[%clk 0:00:30]} 43. Ke3 {[%clk 0:00:10]}  Kc5 {[%clk 0:00:29]} 44. h5 {[%clk 0:00:10]}  Kd5 {[%clk 0:00:29]} 45. Kf4 {[%clk 0:00:11]}  Ke6 {[%clk 0:00:28]} 46. g4 {[%clk 0:00:10]}  Nf7 {[%clk 0:00:28]} 47. g5 {[%clk 0:00:11]}  Ke7 {[%clk 0:00:27]} 48. Kf5 {[%clk 0:00:10]}  Kf8 {[%clk 0:00:28]} 49. h6 {[%clk 0:00:07]}  Kg8 {[%clk 0:00:26]} 50. Kg6 {[%clk 0:00:06]}  Nh8+ {[%clk 0:00:24]} 51. Kf6 {[%clk 0:00:06]}  Kh7 {[%clk 0:00:24]} 52. Kf5 {[%clk 0:00:04]}  Ng6 {[%clk 0:00:22]} 53. Ke6 {[%clk 0:00:02]}  Nf4+ {[%clk 0:00:21]} 54. Ke5 {[%clk 0:00:02]}  Nd3+ {[%clk 0:00:21]} 55. Kd4 {[%clk 0:00:02]}  Nb4 {[%clk 0:00:20]} 56. a4 {[%clk 0:00:02]}  Nc6+ {[%clk 0:00:20]} 57. Kd5 {[%clk 0:00:02]}  Nb4+ {[%clk 0:00:17]} 58. Kc4 {[%clk 0:00:03]}  Na6 {[%clk 0:00:17]} 59. Kb5 {[%clk 0:00:03]}  Nc5 {[%clk 0:00:15]} 60. a5 {[%clk 0:00:03]}  Nd7 {[%clk 0:00:15]} 61. a6 {[%clk 0:00:03]}  Kg6 {[%clk 0:00:14]} 62. Kc6 {[%clk 0:00:04]}  Nc5 {[%clk 0:00:13]} 63. Kb5 {[%clk 0:00:04]}  Kh7 {[%clk 0:00:10]} 64. Kc4 {[%clk 0:00:02]}  Nxa6 {[%clk 0:00:10]} 65. Kd4 {[%clk 0:00:03]}  Nc5 {[%clk 0:00:11]} 66. Kd5 {[%clk 0:00:04]}  Nd7 {[%clk 0:00:11]} 67. Ke6 {[%clk 0:00:04]}  Nf8+ {[%clk 0:00:12]} 68. Kf7 {[%clk 0:00:05]}  Ng6 {[%clk 0:00:12]} 69. Kf6 {[%clk 0:00:03]}  a5 {[%clk 0:00:13]} 0-1


[Site "https://www.chess.com"]

[Event "Titled Tuesday Blitz August 15 Late 2023"]
[White "Shapiro, Daniel"]
[Black "ExchangeAB"]
[WhiteFideId "2001780"]
[WhiteElo "2296"]
[BlackElo "2428"]
[Result "1-0"]
[Round "7"]
[TimeControl "180+1"]
[Date "2023.08.15"]
[WhiteClock "0:00:06"]
[BlackClock "0:00:05"]
[Board "113"]

1. d4 {[%clk 0:03:00]}  Nf6 {[%clk 0:02:58]} 2. c4 {[%clk 0:03:00]}  c6 {[%clk 0:02:59]} 3. Nf3 {[%clk 0:02:59]}  d5 {[%clk 0:03:00]} 4. Qb3 {[%clk 0:02:59]}  e6 {[%clk 0:03:00]} 5. Nc3 {[%clk 0:02:59]}  dxc4 {[%clk 0:02:59]} 6. Qxc4 {[%clk 0:02:58]}  b5 {[%clk 0:03:00]} 7. Qb3 {[%clk 0:02:48]}  Bb7 {[%clk 0:03:00]} 8. Bg5 {[%clk 0:02:36]}  Nbd7 {[%clk 0:02:58]} 9. e4 {[%clk 0:02:29]}  h6 {[%clk 0:02:58]} 10. Bf4 {[%clk 0:02:14]}  b4 {[%clk 0:02:54]} 11. e5 {[%clk 0:01:57]}  Nh5 {[%clk 0:02:31]} 12. Be3 {[%clk 0:01:53]}  bxc3 {[%clk 0:02:25]} 13. Qxb7 {[%clk 0:01:52]}  Rb8 {[%clk 0:02:21]} 14. Qxc6 {[%clk 0:01:51]}  cxb2 {[%clk 0:02:14]} 15. Rb1 {[%clk 0:01:50]}  Qa5+ {[%clk 0:02:04]} 16. Bd2 {[%clk 0:01:34]}  Bb4 {[%clk 0:01:49]} 17. Bd3 {[%clk 0:01:04]}  Nf4 {[%clk 0:01:43]} 18. Be4 {[%clk 0:00:54]}  Nxg2+ {[%clk 0:01:26]} 19. Ke2 {[%clk 0:00:44]}  Bxd2 {[%clk 0:01:25]} 20. Nxd2 {[%clk 0:00:40]}  Nf4+ {[%clk 0:01:23]} 21. Ke3 {[%clk 0:00:38]}  g5 {[%clk 0:01:12]} 22. Bc2 {[%clk 0:00:20]}  O-O {[%clk 0:00:57]} 23. Nb3 {[%clk 0:00:20]}  Qxa2 {[%clk 0:00:48]} 24. Qe4 {[%clk 0:00:19]}  Rxb3+ {[%clk 0:00:47]} 25. Kd2 {[%clk 0:00:17]}  Ng6 {[%clk 0:00:31]} 26. h4 {[%clk 0:00:17]}  Qa5+ {[%clk 0:00:24]} 27. Kd1 {[%clk 0:00:13]}  Rb4 {[%clk 0:00:14]} 28. h5 {[%clk 0:00:12]}  Ndxe5 {[%clk 0:00:14]} 29. hxg6 {[%clk 0:00:08]}  Nxg6 {[%clk 0:00:15]} 30. Rxh6 {[%clk 0:00:07]}  Kg7 {[%clk 0:00:13]} 31. Rxg6+ {[%clk 0:00:06]}  fxg6 {[%clk 0:00:04]} 32. Qxg6+ {[%clk 0:00:06]}  Kh8 {[%clk 0:00:05]} 33. Qh7# {[%clk 0:00:06]} 1-0


[Site "https://www.chess.com"]